bitfinex-derivatives/quotes_ETHF0:USTF0_20250816
["timestamp","ask_amount","ask_price","bid_price","bid_amount"]
[1755331612018,3.009625,4450.6,4450.5,22.4744]
[1755331612731,2.745625,4450.6,4450.5,22.4744]
[1755331613026,2.745625,4450.6,4450.5,25.92345]
[1755331613227,2.350625,4450.6,4450.5,66.72345]
[1755331613423,1.823525,4450.6,4450.5,69.62122253]
[1755331613918,1.296125,4450.6,4450.5,69.62122253]
[1755331617725,1.296125,4450.6,4450.5,69.36572253]
[1755331619126,1.544825,4450.6,4450.5,69.36572253]
[1755331619529,2.751725,4450.6,4450.5,43.69777253]
[1755331619731,2.751725,4450.6,4450.5,61.768]
[1755331619926,2.380025,4450.6,4450.5,61.768]
[1755331620128,1.957725,4450.6,4450.5,61.768]
[1755331620730,1.296125,4450.6,4450.5,61.768]
[1755331620937,0.2487,4451.3,4451.2,0.44898]
[1755331621124,0.2548,4452.0,4451.8,0.44891]
[1755331621322,0.2548,4452.3,4452.2,0.44887]
[1755331621521,0.2548,4452.3,4452.2,20.978]
[1755331621826,0.5804,4452.7,4452.3,0.44887]
[1755331622031,0.2487,4452.6,4452.5,0.44885]
[1755331622331,0.2487,4452.6,4452.5,21.42885]
[1755331622531,0.2487,4452.9,4452.7,0.44883]
[1755331622735,0.2487,4452.9,4452.5,20.98]
[1755331622736,0.1,4453.2,4452.9,0.44881]
[1755331623029,0.2487,4454.2,4453.1,3.2078]
[1755331623232,0.5804,4454.0,4453.9,3.2078]
[1755331623424,1.4556,4454.0,4453.9,65.0518]
[1755331624019,1.4556,4454.0,4453.9,61.844]
[1755331624428,0.5035,4454.0,4453.9,61.844]
[1755331624629,1.4556,4454.0,4453.9,61.844]
[1755331625427,0.8752,4453.9,4453.3,3.2078]
[1755331625630,0.5804,4452.7,4452.6,3.2078]
[1755331625831,1.4556,4452.7,4452.6,24.2368]
[1755331626032,1.0839,4452.7,4452.6,24.6506]
[1755331626435,1.0839,4452.7,4452.6,65.4506]
[1755331626636,0.6616,4452.7,4452.6,65.4506]
[1755331626936,0.2487,4452.7,4452.6,65.4506]
[1755331627134,1.4556,4452.7,4452.6,65.203]
[1755331627435,1.4556,4452.7,4452.6,65.0348]
[1755331629143,1.4556,4452.7,4452.6,65.0178]
[1755331629535,1.4556,4452.7,4452.6,65.2634]
[1755331630037,1.4556,4452.7,4452.6,44.0078]
[1755331630233,1.4556,4452.7,4452.6,61.807]
[1755331630839,1.4556,4452.7,4452.6,40.8]
[1755331631041,1.4556,4452.7,4452.6,61.802]
[1755331631533,1.4556,4452.7,4452.6,40.8]
[1755331631740,1.4556,4452.7,4452.6,61.798]
[1755331632639,0.2487,4452.7,4452.6,61.798]
[1755331632843,0.2487,4452.7,4452.6,62.0436]
[1755331633241,0.4163,4452.7,4452.6,62.0436]
[1755331633441,0.9164,4452.7,4452.6,62.0436]
[1755331633739,1.4556,4452.7,4452.6,62.0436]
[1755331636637,1.4556,4452.7,4452.6,40.8]
[1755331637035,1.4556,4452.7,4452.6,61.763]
[1755331637934,1.4556,4452.7,4452.6,61.757]
[1755331638740,1.4556,4452.7,4452.6,40.8]
[1755331638944,1.4556,4452.7,4452.6,61.75]
[1755331639841,1.4556,4452.7,4452.6,20.95]
[1755331645142,1.4556,4452.7,4452.6,21.1107]
[1755331645334,3.2078,4453.1,4452.6,21.3558]
[1755331645541,0.2446,4453.0,4452.9,0.1626]
[1755331645741,0.2446,4453.0,4452.9,21.3208]
[1755331645941,0.6777,4453.0,4452.9,62.1208]
[1755331646143,1.0382,4453.0,4452.9,62.1208]
[1755331646344,1.4539,4453.0,4452.9,62.1208]
[1755331646947,4.463525,4453.0,4452.9,62.1208]
[1755331648246,3.847425,4453.0,4452.9,62.1208]
[1755331651450,3.254225,4453.0,4452.9,62.56962]
[1755331651851,3.424025,4453.0,4452.9,62.1208]
[1755331652050,3.687325,4453.0,4452.9,62.1208]
[1755331652247,3.942925,4453.0,4452.9,62.1208]
[1755331652752,3.942925,4453.0,4452.9,61.688]
[1755331652753,4.463525,4453.0,4452.9,61.688]
[1755331654546,4.463525,4453.0,4452.9,61.681]
[1755331654746,4.463525,4453.0,4452.9,40.8]
[1755331655046,0.5932,4452.2,4452.1,0.26177476]
[1755331655251,1.4539,4452.2,4452.1,21.37587476]
[1755331655446,1.4539,4452.2,4452.1,41.30687476]
[1755331655751,1.4539,4452.2,4452.1,61.94767476]
[1755331656250,0.2446,4452.2,4452.1,62.19087476]
[1755331656454,0.8378,4452.2,4452.1,62.19087476]
[1755331656655,1.4539,4452.2,4452.1,62.19087476]
[1755331657849,1.4539,4452.2,4452.1,41.30687476]
[1755331658049,1.4539,4452.2,4452.1,62.17887476]
[1755331659252,1.4539,4452.2,4452.1,40.90107476]
[1755331659553,1.4539,4452.2,4452.1,61.76207476]
[1755331659751,1.4539,4452.2,4452.1,40.90107476]
[1755331660051,1.4539,4452.2,4451.1,0.2432]
[1755331660052,1.1983,4451.2,4451.1,0.4147]
[1755331660256,1.4539,4451.2,4451.1,21.1162]
[1755331660553,1.4539,4451.2,4451.1,61.9162]
[1755331660751,1.4539,4451.2,4451.1,41.0422]
[1755331660957,1.4539,4451.2,4451.1,62.2904]
[1755331661352,1.4539,4451.2,4451.1,62.5336]
[1755331664455,0.2446,4451.9,4451.8,0.9466]
[1755331664660,3.424025,4452.1,4452.0,1.1898]
[1755331664861,3.009625,4452.1,4452.0,22.3084]
[1755331665060,4.103025,4452.1,4452.0,22.0488]
[1755331665255,4.463525,4452.1,4452.0,62.8488]
[1755331665456,4.463525,4452.1,4452.0,63.32371]
[1755331665959,4.103025,4452.1,4452.0,63.1324]
[1755331666351,4.463525,4452.1,4452.0,63.1324]
[1755331666758,3.009625,4452.1,4452.0,63.58131]
[1755331668565,3.009625,4452.1,4452.0,42.69831]
[1755331668862,3.009625,4452.1,4452.0,63.57431]
[1755331669666,3.253425,4452.1,4452.0,63.57431]
[1755331671569,4.489325,4452.1,4452.0,41.7466]
[1755331671761,4.489325,4452.1,4452.0,61.651]
[1755331671961,3.619425,4452.1,4452.0,20.855]
[1755331672263,4.489325,4452.1,4452.0,20.855]
[1755331672759,4.489325,4452.1,4452.0,21.1038]
[1755331672961,4.101925,4452.1,4452.0,22.097]
[1755331673263,4.489325,4452.1,4452.0,21.8415]
[1755331673465,4.489325,4452.1,4452.0,22.097]
[1755331673966,4.489325,4452.1,4452.0,21.2787]
[1755331674158,0.6098,4451.7,4451.6,40.8]
[1755331674354,1.4797,4451.7,4451.6,61.655]
[1755331675562,1.4797,4451.7,4451.6,40.8]
[1755331675770,1.4797,4451.7,4451.6,61.651]
[1755331677265,1.4797,4451.7,4451.6,40.8]
[1755331677469,0.6098,4451.2,4451.1,3.2078]
[1755331677667,0.6098,4451.2,4451.1,20.841]
[1755331677867,0.6098,4451.2,4451.1,61.641]
[1755331678360,1.4797,4451.2,4451.1,62.0317]
[1755331678561,4.0563,4451.5,4451.4,1.242]
[1755331678867,4.4437,4451.5,4451.4,22.081]
[1755331679068,4.6875,4451.5,4451.4,22.081]
[1755331679569,4.6875,4451.5,4451.4,21.4348]
[1755331679958,4.6875,4451.5,4451.4,22.081]
[1755331680363,7.697125,4451.5,4451.4,21.2587]
[1755331680560,7.697125,4451.5,4451.4,21.0838]
[1755331680767,7.697125,4451.5,4451.4,21.4745]
[1755331680966,7.697125,4451.5,4451.4,21.8215]
[1755331681269,7.697125,4451.5,4451.4,22.077]
[1755331681767,7.697125,4451.5,4451.1,40.8]
[1755331681967,1.4797,4450.5,4450.4,0.2488]
[1755331682467,1.4797,4450.5,4450.4,61.8688]
[1755331683059,1.4797,4450.5,4450.4,41.0488]
[1755331683366,1.4797,4450.5,4450.4,61.62]
[1755331684371,1.4797,4450.5,4450.4,61.619]
[1755331684571,1.4797,4450.5,4450.4,61.614]
[1755331685275,4.489325,4450.5,4450.4,61.614]
[1755331686971,4.489325,4450.5,4450.4,40.8]
[1755331687370,4.489325,4450.5,4450.4,61.601]
[1755331687973,4.489325,4450.5,4450.4,40.8]
[1755331688173,4.489325,4450.5,4450.4,61.601]
[1755331689973,3.009625,4450.5,4450.4,61.601]
[1755331690277,3.428825,4450.5,4450.4,22.2964]
[1755331690474,4.101925,4450.5,4450.4,22.2964]
[1755331690678,4.489325,4450.5,4450.4,22.2964]
[1755331690973,4.489325,4450.5,4450.4,22.043]
[1755331693379,1.4797,4450.2,4450.1,40.8]
[1755331693680,1.4797,4450.2,4450.1,20.795]
[1755331695073,1.4797,4450.2,4450.1,20.796]
[1755331695274,1.4797,4450.2,4449.9,40.8]
[1755331695481,0.6098,4450.2,4449.9,61.596]
[1755331695677,0.8699,4450.1,4449.9,61.9867]
[1755331695980,3.8339,4450.3,4450.2,0.8144]
[1755331696182,4.4437,4450.3,4450.2,22.038]
[1755331696685,4.6875,4450.3,4450.2,22.038]
[1755331697486,7.697125,4450.3,4450.2,22.038]
[1755331700088,7.697125,4450.3,4450.2,21.7825]
[1755331701389,0.5952,4449.5,4449.4,3.805]
[1755331701590,1.4889,4449.5,4449.4,25.234]
[1755331702088,1.4889,4449.5,4449.4,66.034]
[1755331702789,1.0937,4449.5,4449.4,66.034]
[1755331702988,1.4889,4449.5,4449.4,66.034]
[1755331704485,1.4889,4449.5,4449.4,42.0302]
[1755331704793,1.4889,4449.5,4449.4,62.5675]
[1755331705381,4.498525,4449.5,4449.4,62.5675]
[1755331705790,4.498525,4449.5,4449.4,62.8272]
[1755331711388,3.009625,4449.5,4449.4,61.597]
[1755331711587,3.009625,4449.5,4449.4,62.4742]
[1755331711788,3.248025,4449.5,4449.4,62.4742]
[1755331711987,3.682425,4449.5,4449.4,62.4742]
[1755331712188,4.103325,4449.5,4449.4,62.4742]
[1755331712387,4.498525,4449.5,4449.4,62.4742]
[1755331713393,4.498525,4449.5,4449.4,41.433]
[1755331713593,4.498525,4449.5,4449.4,62.229]
[1755331715992,4.498525,4449.5,4449.4,62.4732]
[1755331716495,4.498525,4449.5,4449.4,62.229]
[1755331716789,4.103325,4449.5,4449.4,62.229]
[1755331716994,4.103325,4449.5,4449.4,62.4732]
[1755331717195,4.498525,4449.5,4449.4,62.4732]
[1755331717394,4.498525,4449.5,4449.4,61.9693]
[1755331717587,4.498525,4449.5,4449.4,41.1733]
[1755331717788,0.5952,4449.0,4448.9,0.7964]
[1755331717997,1.4889,4449.0,4448.9,21.5924]
[1755331718189,1.4889,4449.0,4448.9,62.3924]
[1755331718390,1.4889,4449.0,4448.9,62.5665]
[1755331718596,1.4889,4449.0,4448.9,62.0191]
[1755331718895,1.4889,4449.0,4448.9,41.5964]
[1755331719297,1.4889,4449.0,4448.9,62.3924]
[1755331719494,1.4889,4449.0,4448.9,62.6521]
[1755331719690,3.404825,4449.5,4448.9,62.2788]
[1755331719995,3.248025,4449.5,4449.4,1.4744]
[1755331720190,3.422325,4449.5,4449.4,22.2704]
[1755331720392,4.103325,4449.5,4449.4,22.2704]
[1755331720793,4.498525,4449.5,4449.4,22.2704]
[1755331721094,4.498525,4449.5,4449.4,22.0262]
[1755331726002,1.498525,4449.5,4449.4,22.0262]
[1755331727102,1.498525,4449.5,4449.4,21.7665]
[1755331727503,1.498525,4449.5,4449.4,0.9705]
[1755331727703,1.498525,4449.5,4449.4,0.2521]
[1755331727903,1.498525,4449.5,4449.4,20.793]
[1755331728707,0.009625,4449.5,4449.4,22.70528]
[1755331729004,0.670925,4449.5,4449.4,22.70528]
[1755331729393,0.430125,4449.5,4449.4,22.2561]
[1755331729604,0.670925,4449.5,4449.4,22.2561]
[1755331730708,1.463725,4449.5,4449.4,22.2561]
[1755331731005,1.104425,4449.5,4449.4,22.2561]
[1755331731806,1.463725,4449.5,4449.4,22.2561]
[1755331732302,1.463725,4449.5,4449.4,1.4631]
[1755331732501,1.463725,4449.5,4449.4,21.9993]
[1755331733705,1.104425,4449.5,4449.4,21.9993]
[1755331733907,1.463725,4449.5,4449.4,21.9993]
[1755331740509,0.009625,4449.5,4449.4,21.9993]
[1755331740714,0.009625,4449.5,4449.4,25.4489]
[1755331741209,0.009625,4449.5,4449.4,66.2489]
[1755331742115,4.4034,4450.5,4450.4,0.8369]
[1755331742411,3.98495467,4450.5,4449.4,44.0078]
[1755331742610,0.5955,4449.5,4449.4,41.24916]
[1755331742811,1.4541,4449.5,4449.4,41.50486]
[1755331743011,1.4541,4449.5,4449.4,62.28986]
[1755331743216,1.4541,4449.5,4449.4,62.65376]
[1755331743612,1.4541,4449.5,4449.4,62.89556]
[1755331744013,4.463725,4449.5,4449.4,62.89556]
[1755331746213,4.463725,4449.5,4449.4,41.61306]
[1755331746411,4.463725,4449.5,4449.4,62.2036]
[1755331747119,4.463725,4449.5,4449.4,41.4196]
[1755331747416,0.5955,4448.8,4448.7,1.03043]
[1755331747609,1.4541,4448.8,4448.7,22.06813]
[1755331747807,1.4541,4448.8,4448.7,63.10993]
[1755331748012,1.4541,4448.8,4448.7,63.47383]
[1755331748614,1.0948,4448.8,4448.7,63.23203]
[1755331748818,1.4541,4448.8,4448.7,63.23203]
[1755331749123,1.4541,4448.8,4448.7,63.47383]
[1755331749619,1.4541,4448.8,4448.7,63.0246]
[1755331749822,1.4541,4448.8,4448.7,61.582]
[1755331750016,1.4541,4448.8,4448.7,20.782]
[1755331750414,4.463725,4448.8,4448.7,61.582]
[1755331750818,4.463725,4448.8,4448.7,40.8]
[1755331751020,4.463725,4448.8,4448.7,61.582]
[1755331751416,4.463725,4448.8,4448.4,0.3639]
[1755331751618,0.5955,4448.6,4448.5,21.1449]
[1755331751919,1.4541,4448.6,4448.5,62.195]
[1755331752119,1.4541,4448.6,4448.5,61.8321]
[1755331752822,1.4541,4448.6,4448.5,62.196]
[1755331754419,1.4541,4448.6,4448.5,41.6697]
[1755331754619,1.4541,4448.6,4448.5,62.195]
[1755331755223,4.463725,4448.6,4448.5,62.195]
[1755331756019,4.463725,4448.6,4448.5,62.4507]
[1755331757220,4.463725,4448.6,4448.5,41.6697]
[1755331757420,4.463725,4448.6,4448.5,62.4497]
[1755331759024,4.104425,4448.6,4447.8,3.5788]
[1755331759232,1.5001,4447.6,4447.5,0.2596]
[1755331759432,1.5001,4447.6,4447.5,21.0386]
[1755331759629,1.5001,4447.6,4447.5,62.2096]
[1755331760130,1.5001,4447.6,4447.5,20.779]
[1755331760328,4.509725,4447.6,4447.5,21.9944]
[1755331760528,4.509725,4447.6,4447.5,1.4629]
[1755331760731,4.509725,4447.6,4447.5,22.2409]
[1755331760932,4.126325,4447.6,4447.5,22.2409]
[1755331761336,4.509725,4447.6,4447.5,21.9934]
[1755331761832,4.50522048,4447.6,4447.5,21.9934]
[1755331762329,4.50522048,4447.6,4447.5,0.9601]
[1755331762634,4.50522048,4447.6,4447.5,21.0396]
[1755331763036,4.50522048,4447.6,4447.5,21.4096]
[1755331763232,4.50522048,4447.6,4447.5,21.9944]
[1755331764136,4.50522048,4447.6,4447.5,22.2419]
[1755331764832,4.12182048,4447.6,4447.5,22.2419]
[1755331765533,4.50522048,4447.6,4447.5,21.7391]
[1755331765732,4.50522048,4447.6,4447.5,0.9601]
[1755331765938,4.50522048,4447.6,4447.5,21.5693]
[1755331766239,4.50522048,4447.6,4447.5,20.779]
[1755331766436,4.50522048,4447.6,4447.4,40.8]
[1755331766636,3.60182048,4447.6,4447.5,20.778]
[1755331767241,4.50522048,4447.6,4447.5,20.778]
[1755331768039,4.50522048,4447.6,4447.4,40.8]
[1755331768239,1.5001,4447.5,4447.4,40.8]
[1755331768545,1.5001,4447.5,4447.4,61.578]
[1755331768846,1.5001,4447.5,4447.4,61.949]
[1755331769044,1.5001,4447.5,4447.4,61.578]
[1755331769345,1.5001,4447.5,4447.4,20.778]
[1755331769643,0.5967,4447.5,4447.4,20.777]
[1755331769838,0.5967,4447.5,4447.2,0.2553]
[1755331770041,0.5967,4447.5,4447.4,0.6306]
[1755331770239,1.5001,4447.5,4447.4,21.4066]
[1755331770742,1.5001,4447.2,4447.1,0.6746]
[1755331770943,1.5001,4447.2,4447.1,21.9924]
[1755331771939,1.5001,4447.2,4447.1,21.7371]
[1755331772140,0.5967,4446.3,4446.2,3.4674]
[1755331772339,1.1167,4446.3,4446.2,25.4467]
[1755331772546,0.857,4446.3,4446.2,66.2467]
[1755331772743,0.689,4446.3,4446.2,66.2467]
[1755331773945,1.1167,4446.3,4446.2,66.2467]
[1755331774145,1.5001,4446.3,4446.2,66.2467]
[1755331774347,1.5001,4446.3,4446.2,45.4707]
[1755331774545,1.5001,4446.3,4446.2,66.2467]
[1755331774747,1.1167,4446.3,4446.2,45.2232]
[1755331775047,1.5001,4446.3,4446.2,65.9982]
[1755331775241,3.2078,4446.9,4446.2,66.2457]
[1755331775437,3.009625,4446.3,4446.2,65.6194]
[1755331775838,3.009625,4446.3,4446.2,66.69519]
[1755331776340,3.009625,4446.3,4446.2,45.4707]
[1755331776545,3.009625,4446.3,4446.2,66.2467]
[1755331777250,3.272825,4446.3,4446.2,66.2467]
[1755331777548,3.272825,4446.3,4446.2,45.4707]
[1755331777549,3.009625,4446.3,4446.2,45.4707]
[1755331777749,3.009625,4446.3,4446.2,66.2457]
[1755331779346,3.272825,4446.3,4446.2,45.4707]
[1755331779648,4.509725,4446.3,4446.2,65.7419]
[1755331780347,4.509725,4446.3,4446.2,65.9972]
[1755331780748,4.509725,4446.3,4446.2,44.4271]
[1755331780945,4.509725,4446.3,4446.2,61.9933]
[1755331781141,4.509725,4446.3,4446.2,41.5903]
[1755331781340,4.509725,4446.3,4446.2,61.9933]
[1755331781544,4.509725,4446.3,4446.2,40.8]
[1755331781742,4.509725,4446.3,4446.2,61.573]
[1755331782351,4.509725,4446.3,4446.2,20.773]
[1755331782646,3.606325,4446.3,4445.6,0.371]
[1755331782855,1.5001,4445.7,4445.6,0.6306]
[1755331783049,1.5001,4445.7,4445.6,21.4036]
[1755331783251,0.5967,4445.7,4445.6,40.8]
[1755331783455,0.5967,4445.7,4445.6,61.573]
[1755331783654,0.5967,4445.7,4445.6,61.944]
[1755331783858,1.5001,4445.7,4445.6,41.171]
[1755331784054,1.5001,4445.7,4445.6,61.944]
[1755331784452,0.857,4445.7,4445.6,62.4468]
[1755331784754,0.2632,4445.7,4445.6,62.4468]
[1755331785147,0.4322,4445.7,4445.6,62.4468]
[1755331785349,0.857,4445.7,4445.6,62.4468]
[1755331785646,1.5001,4445.7,4445.6,40.8]
[1755331785952,1.5001,4445.7,4445.6,61.574]
[1755331786152,1.5001,4445.7,4445.6,40.8]
[1755331786351,0.169,4445.2,4445.1,0.10123393]
[1755331786552,1.5001,4445.2,4445.1,21.66453393]
[1755331786856,1.5001,4445.2,4445.1,62.88963393]
[1755331787354,1.5001,4445.2,4445.1,63.13713393]
[1755331788154,0.6002,4445.2,4445.1,63.13713393]
[1755331788756,0.8433,4445.2,4445.1,63.13713393]
[1755331789659,0.6002,4445.2,4445.1,41.16083393]
[1755331789848,1.4897,4445.2,4445.1,62.58453393]
[1755331790053,1.4897,4445.2,4445.1,62.83603393]
[1755331790357,1.0928,4445.2,4445.1,62.83603393]
[1755331790758,0.8433,4445.2,4445.1,62.83603393]
[1755331792055,0.1722,4445.4,4445.3,0.3299]
[1755331792258,1.481,4445.4,4445.3,22.0122]
[1755331792656,0.2524,4445.8,4445.3,21.3615]
[1755331792864,1.481,4445.8,4445.7,1.2402]
[1755331793055,1.481,4445.8,4445.7,21.7566]
[1755331793255,1.481,4445.8,4445.7,21.1947]
[1755331793456,1.481,4445.8,4445.7,21.0316]
[1755331793761,1.481,4445.8,4445.7,20.772]
[1755331793960,1.481,4445.8,4445.1,41.35084393]
[1755331794160,1.0841,4445.3,4445.2,22.0112]
[1755331794352,1.481,4445.3,4445.2,22.0112]
[1755331794756,1.481,4445.3,4445.2,20.771]
[1755331795152,1.481,4445.3,4445.2,21.4257]
[1755331795359,4.490625,4445.3,4445.2,21.4257]
[1755331795654,4.490625,4445.3,4445.2,0.2596]
[1755331795856,4.490625,4445.3,4445.2,20.77]
[1755331796062,4.490625,4445.3,4445.2,21.0296]
[1755331796257,4.490625,4445.3,4445.2,22.0102]
[1755331796564,3.505125,4445.3,4445.2,22.2617]
[1755331796864,3.262025,4445.3,4445.2,22.2617]
[1755331797264,3.505125,4445.3,4445.2,22.2617]
[1755331797564,3.262025,4445.3,4445.2,22.2617]
[1755331799563,3.505125,4445.3,4445.2,22.2617]
[1755331799766,3.677325,4445.3,4445.2,22.2617]
[1755331800063,3.677325,4445.3,4445.2,21.7546]
[1755331800064,4.490625,4445.3,4445.2,21.7546]
[1755331800267,3.009625,4445.3,4445.2,25.4685]
[1755331801263,3.505125,4445.3,4445.2,25.4685]
[1755331801462,3.844225,4445.3,4445.2,4.448]
[1755331801765,4.490625,4445.3,4445.2,21.0276]
[1755331801965,4.490625,4445.3,4445.2,21.5858]
[1755331802164,4.490625,4445.3,4445.2,22.0082]
[1755331802567,3.009625,4445.3,4445.2,22.70931]
[1755331803666,3.262025,4445.3,4445.2,22.70931]
[1755331803865,3.677325,4445.3,4445.2,22.70931]
[1755331804565,3.009625,4445.3,4445.2,22.70931]
[1755331806765,3.262025,4445.3,4445.2,22.70931]
[1755331806970,3.262025,4445.3,4445.2,1.94131]
[1755331807169,3.262025,4445.3,4445.2,22.70631]
[1755331807368,3.009625,4445.3,4445.2,22.70631]
[1755331807676,3.677325,4445.3,4445.2,22.70631]
[1755331807975,3.844225,4445.3,4445.2,22.70631]
[1755331808974,3.262025,4445.3,4445.2,22.70631]
[1755331809364,3.009625,4445.3,4445.2,22.70631]
[1755331810574,3.262025,4445.3,4445.2,22.70631]
[1755331810774,3.505125,4445.3,4445.2,22.70631]
[1755331810976,3.844225,4445.3,4445.2,22.70431]
[1755331811181,4.490625,4445.3,4445.2,22.70431]
[1755331811469,4.490625,4445.3,4445.2,22.45281]
[1755331812172,4.490625,4445.3,4445.2,22.70431]
[1755331813071,4.490625,4445.3,4445.2,21.21061]
[1755331813272,4.490625,4445.3,4445.2,21.86531]
[1755331813771,4.093725,4445.3,4445.2,22.19521]
[1755331813975,3.844225,4445.3,4445.2,22.70231]
[1755331814272,3.38,4445.9,4445.8,1.68975]
[1755331814573,4.0424,4445.9,4445.8,22.70225]
[1755331814768,1.0841,4445.9,4445.8,22.70225]
[1755331814968,0.2524,4445.9,4445.8,22.70225]
[1755331815174,1.481,4446.3,4446.2,1.039]
[1755331815376,1.481,4446.3,4446.2,22.0505]
[1755331815672,1.481,4446.3,4446.2,63.2456]
[1755331815873,1.481,4446.3,4446.2,63.5012]
[1755331816068,1.481,4446.3,4446.2,62.8002]
[1755331816274,0.6677,4446.3,4446.2,63.0517]
[1755331816470,0.2524,4446.3,4446.2,63.0517]
[1755331816771,0.4246,4446.3,4446.2,63.0517]
[1755331816969,0.6677,4446.3,4446.2,63.0517]
[1755331817169,0.8346,4446.3,4446.2,63.0517]
[1755331817369,0.2524,4446.3,4446.2,63.0517]
[1755331817565,2.82206226,4449.8,4446.8,0.6502]
[1755331817566,3.2078,4447.0,4446.8,0.6502]
[1755331817772,4.6888,4447.0,4446.9,22.2492]
[1755331818071,4.6888,4447.0,4446.9,21.9967]
[1755331818373,4.6888,4447.0,4446.9,21.7416]
[1755331818574,0.5937,4446.8,4446.7,1.09245]
[1755331818771,1.4927,4446.8,4446.7,21.84845]
[1755331819375,1.4927,4446.8,4446.7,22.02095]
[1755331819775,1.4927,4446.8,4446.7,21.5715]
[1755331820078,0.5937,4446.8,4446.7,20.756]
[1755331820278,1.4927,4446.8,4446.7,20.756]
[1755331820579,1.4927,4446.8,4446.7,21.9996]
[1755331820768,4.502325,4446.8,4446.7,21.399]
[1755331820973,4.502325,4446.8,4446.7,21.0041]
[1755331821179,4.502325,4446.8,4446.5,1.26497]
[1755331821180,0.5937,4446.6,4446.5,1.26497]
[1755331821476,1.4927,4446.6,4446.5,22.44807]
[1755331821674,0.8471,4446.6,4446.5,22.44807]
[1755331821868,1.4927,4446.6,4446.5,22.44807]
[1755331823366,3.009625,4446.8,4446.7,0.44946]
[1755331823572,3.593025,4446.8,4446.7,22.69306]
[1755331823772,3.009625,4446.8,4446.7,22.69306]
[1755331824470,3.263025,4446.8,4446.7,22.69306]
[1755331824780,3.525625,4446.8,4446.7,22.69306]
[1755331824968,3.686725,4446.8,4446.7,22.69306]
[1755331825974,3.686725,4446.8,4446.7,22.69006]
[1755331826481,3.424125,4446.8,4446.7,22.69006]
[1755331826676,3.009625,4446.8,4446.7,22.69006]
[1755331827671,3.009625,4446.8,4446.7,1.94106]
[1755331827875,3.009625,4446.8,4446.7,22.68706]
[1755331828273,3.009625,4446.8,4446.7,25.58384679]
[1755331828876,3.009625,4446.8,4446.7,66.38384679]
[1755331830883,4.502325,4446.8,4446.7,63.23606]
[1755331832179,4.502325,4446.8,4446.7,40.8]
[1755331832379,3.603325,4446.8,4446.7,20.742]
[1755331832580,4.502325,4446.8,4446.7,19.8167]
[1755331833887,4.502325,4446.8,4446.0,40.8]
[1755331834083,0.846,4446.1,4446.0,41.1949]
[1755331834386,0.846,4446.1,4446.0,61.9349]
[1755331834581,0.846,4446.1,4446.0,62.442]
[1755331834777,0.846,4446.1,4446.0,61.9349]
[1755331835178,0.846,4446.1,4446.0,62.442]
[1755331835383,3.855625,4446.1,4446.0,40.8]
[1755331835587,3.855625,4446.1,4446.0,61.539]
[1755331836077,3.855625,4446.1,4446.0,61.9339]
[1755331837285,3.855625,4446.1,4446.0,62.1819]
[1755331838183,3.855625,4446.1,4446.0,41.4429]
[1755331838383,3.855625,4446.1,4446.0,61.539]
[1755331838584,3.855625,4446.1,4446.0,20.739]
[1755331839383,3.339625,4446.1,4445.6,40.8]
[1755331839585,0.846,4445.8,4445.7,20.739]
[1755331840285,3.855625,4445.8,4445.7,20.739]
[1755331841793,3.855625,4445.8,4445.7,21.5545]
[1755331841986,3.855625,4445.8,4445.7,22.2342]
[1755331843695,3.855625,4445.8,4445.7,0.4205]
[1755331843894,0.846,4445.2,4445.1,0.10123393]
[1755331844090,4.0538,4445.2,4445.1,20.83823393]
[1755331845992,4.0538,4445.2,4445.1,0.91673393]
[1755331846196,4.0538,4445.2,4445.1,21.90373393]
[1755331846393,4.0538,4445.2,4445.1,20.83923393]
[1755331846593,4.0538,4445.2,4443.6,3.6027]
[1755331846594,0.846,4444.2,4443.6,3.6027]
[1755331846789,0.5926,4443.4,4443.3,1.68589]
[1755331846995,0.5926,4443.4,4443.3,63.48199]
[1755331847195,0.2534,4443.6,4443.3,63.48199]
[1755331847395,0.846,4443.8,4443.7,0.5932]
[1755331847597,0.846,4443.8,4443.7,22.2322]
[1755331848101,0.846,4443.8,4443.7,21.7281]
[1755331848293,0.33,4443.8,4443.7,20.74]
[1755331848499,0.33,4443.8,4443.7,22.2465]
[1755331848890,3.2078,4444.6,4443.7,25.98958]
[1755331849096,0.8324,4444.6,4444.5,1.4981]
[1755331849298,0.8324,4444.6,4444.5,22.2371]
[1755331850301,3.347625,4444.6,4444.5,22.2371]
[1755331850501,3.009625,4444.6,4444.5,22.2371]
[1755331851700,3.347625,4444.6,4444.5,63.0371]
[1755331851897,3.842025,4444.6,4444.5,63.0371]
[1755331852397,3.842025,4444.6,4444.5,41.3807]
[1755331852600,3.842025,4444.6,4444.5,61.7864]
[1755331852803,3.842025,4444.6,4444.5,40.8]
[1755331853007,3.842025,4444.6,4444.5,61.539]
[1755331853202,3.347625,4444.6,4444.1,0.5101]
[1755331853404,0.8324,4443.5,4443.4,1.4981]
[1755331853705,4.0402,4444.1,4444.0,1.4981]
[1755331853908,4.0402,4444.1,4444.0,22.2371]
[1755331854601,0.4944,4444.5,4444.0,22.2371]